{"text_format":"1","workbook":"xlsx","n_sheets":5,"sheets":["Notas de Utilização","Quebra Faturação","Simulação Apoiar Rendas","Condições para aceder","Alerta"],"not_rendered":{"charts":0,"images":3,"macros":1,"external_links":0,"defined_names":4,"comments":0,"pivot_tables":0},"unopened":[],"bounds":{"document_bytes":16777216,"sheet_cells":100000,"rows_first":2000,"rows_last":500,"rows_between":2000,"halvings":0,"cell_chars":16384,"cell_head_chars":4096},"cells_cut":0,"cells_raw":0,"read":"whole","date_system":"1900"}

{"sheet":"Notas de Utilização","index":0,"n_rows":7,"n_cols":1,"rows_kept":7,"cut":false,"hidden":true,"merged":[[0,0,0,8],[2,0,4,12]]}
["Notas para utilização do simulador"]
[]
["1.   O utilizador deve manter o formato do ficheiro xlsm, não o devendo gravar em qualquer outro formato, pois pode alterar as fórmulas e os resultados obtidos. Não deve copiar dados numéricos ou alfanuméricos de outros ficheiros nem de qualquer outro modo formatar células do ficheiro."]
[]
[]
[]
["2. Na folha Simulação Apoiar Rendas inserir texto de identificação do contrato (por exemplo, Rua X, Loja A, etc.)"]

{"sheet":"Quebra Faturação","index":1,"n_rows":54,"n_cols":19,"rows_kept":54,"cut":false,"hidden":true,"merged":[[19,1,19,3],[1,1,1,8],[3,2,3,7],[4,2,4,7],[5,2,5,7],[6,1,6,8],[7,1,7,2],[9,1,9,2],[11,1,11,2],[13,1,13,2],[15,1,15,2],[17,1,17,4],[21,1,21,2],[21,6,21,7],[22,1,22,2],[22,6,22,7],[23,1,23,2],[23,6,23,7],[24,1,24,2],[24,6,24,7],[25,1,25,2],[25,6,25,7],[26,1,26,2],[26,6,26,7],[36,1,36,3],[27,1,27,2],[27,6,27,7],[28,1,28,2],[28,6,28,7],[29,1,29,2],[29,6,29,7],[30,1,30,2],[31,1,31,2],[32,1,32,2],[34,1,34,5],[35,1,35,4],[30,6,30,7],[31,6,31,7],[32,6,32,7],[51,1,51,8],[53,1,55,6],[48,1,48,8],[49,1,49,8],[38,1,38,8],[40,1,40,5],[44,1,44,5],[44,7,44,8],[45,1,45,4],[45,5,45,7]]}
[null,null,null,null,null,null,null,null,null,null,null,null,null,"Microempresa","Até 31/12/2018","Positivos","janeiro de 2019",56302,"Até 31/12/2019"]
[null,"Simulador Quebra de Faturação",null,null,null,null,null,null,null,null,null,null,null,"Pequena Empresa","Após 01/01/2019","Negativos","fevereiro de 2019",56304,"Após 01/01/2020"]
[null,null,null,null,null,null,null,null,null,null,null,null,null,"Outras Empresas",null,null,"março de 2019",56305]
[null,"Nome:","Nome da Empresa",null,null,null,null,null,null,null,null,null,null,null,null,null,"abril de 2019",93210]
[null,"NIF:","NIF da Empresa",null,null,null,null,null,null,null,null,null,null,null,null,null,"maio de 2019",93294]
[null,null,null,null,null,null,null,null,null,null,null,null,null,null,null,null,"junho de 2019","Outros"]
[null,"Dados para simulação",null,null,null,null,null,null,null,null,null,null,null,null,null,null,"julho de 2019"]
[null,null,null,null,null,null,null,null,null,null,null,null,null,null,null,null,"agosto de 2019"]
[null,null,null,null,null,null,null,null,null,null,null,null,null,null,null,null,"setembro de 2019"]
[null,null,null,null,null,null,null,null,null,null,null,null,null,null,null,null,"outubro de 2019"]
[null,null,null,null,null,null,null,null,null,null,null,null,null,null,null,null,"novembro de 2019"]
[null,"Data de início de atividade",null,null,null,null,null,null,"Até 31/12/2018",null,null,null,null,null,null,null,"dezembro de 2019"]
[null,null,null,null,null,null,null,null,null,null,null,null,null,null,null,null,"janeiro de 2020"]
[null,"Mês completo de início de atividade",null,null,null,null,null,null,"janeiro de 2019",null,null,null,null,null,null,null,"fevereiro de 2020"]
[]
[]
[]
[]
[]
[null,"Faturação Mensal"]
[null,null,null,"Montante €",null,null,null,null,"Montante €"]
[null,"janeiro de 2019",null,0,null,null,"janeiro de 2020",null,0]
[null,"fevereiro de 2019",null,0,null,null,"fevereiro de 2020",null,0]
[null,"março de 2019",null,0,null,null,"março de 2020",null,0]
[null,"abril de 2019",null,0,null,null,"abril de 2020",null,0]
[null,"maio de 2019",null,0,null,null,"maio de 2020",null,0]
[null,"junho de 2019",null,0,null,null,"junho de 2020",null,0]
[null,"julho de 2019",null,0,null,null,"julho de 2020",null,0]
[null,"agosto de 2019",null,0,null,null,"agosto de 2020",null,0]
[null,"setembro de 2019",null,0,null,null,"setembro de 2020",null,0]
[null,"outubro de 2019",null,0,null,null,"outubro de 2020",null,0]
[null,"novembro de 2019",null,0,null,null,"novembro de 2020",null,0]
[null,"dezembro de 2019",null,0,null,null,"dezembro de 2020",null,0]
[]
[null,"Faturação total de janeiro a dezembro de 2019",null,null,null,null,null,null,{"$f":"IF(I12=\"Até 31/12/2018\",SUM(D22:D33),SUM(D22:D33,I22:I23))","v":0}]
[null,"Faturação média de início de atividade a fevereiro 2020",null,null,null,null,null,null,60000]
[null,"Faturação total de janeiro a dezembro de 2020",null,null,null,null,null,null,{"$f":"SUM(I22:I33)","v":0}]
[]
[null,"Resultado da simulação"]
[]
[]
[]
[]
[]
[]
[null,"Data de simulação",null,null,null,{"$f":"TODAY()","v":"2021-02-04"}]
[]
[]
[null,"No caso de empresas que iniciaram atividade no ano de 2019 a faturação mensal respeita a meses completos."]
[null,"Devem ser inseridos valores de faturação, sem IVA, extraídos do e-fatura ou do programa de faturação, dos seguintes documentos de faturação: faturas (e/ou faturas-recibo) e notas de débito, deduzidos de notas de crédito. "]
[]
[null,"A Ordem não se responsabiliza por valores incorretos de pagamentos por conta apurados, resultantes de erros na introdução de dados ou na interpretação das normas aplicáveis."]
[]
[null,""]

{"sheet":"Simulação Apoiar Rendas","index":2,"n_rows":48,"n_cols":17,"rows_kept":48,"cut":false,"hidden":true,"merged":[[0,0,0,10],[39,4,39,10],[18,17,22,18],[19,6,19,10],[5,2,5,9],[4,2,4,9],[1,1,1,10],[38,0,38,1],[46,1,46,10],[43,2,43,4],[43,6,43,8],[12,1,12,2],[11,1,11,10]]}
[null,null,null,null,null,null,null,null,null,null,null,null,null,null,"Sim","Positivos","Inferior a 25%"]
[null,"Simulador Apoiar Rendas",null,null,null,null,null,null,null,null,null,null,null,null,"Não","Negativos","Entre 25 e 40%"]
[null,null,null,null,null,null,null,null,null,null,null,null,null,null,null,null,"Superior a 40%"]
[]
[null,"Nome:","Nome da Empresa"]
[null,"NIF:","NIF da Empresa"]
[]
[null,"Portaria n.º 15-B/202 REGULAMENTO ESPECÍFICO DO APOIO À LIQUIDEZ: PROGRAMA APOIAR (Artigos 13.º-A, B, C, D)"]
[null,"Submissão Balcão 2020: a partir de 04 de fevereiro "]
[null,"Expetativa de pagamento: a partir da segunda quinzena de fevereiro"]
[]
[null,"Dados para simulação"]
[null,"Atividade principal CAE Anexo A",null,null,"Sim"]
[null,"Capitais próprios 31/12/2019",null,null,"Positivos"]
[null,"Quebra",null,null,"Entre 25 e 40%",null,null,null,null,null,null,{"$f":"IF(E15=Q1,\"<25\",IF(E15=Q2,\"25><40\",IF(E15=Q3,\">40\",\"\")))","v":"25><40"}]
[]
[]
[]
[]
[null,null,null,null,null,null,"Resultado"]
[null,"Contrato de arrendamento","Renda mensal",null,"Nº de meses",null,"Apoio Prev. Mensal","Apoio Prev. Total",null,"Apoio Prev. Mensal","Apoio Prev. Total"]
[null,null,null,null,null,{"$f":"IF(B22<>\"\",+IF($L$15=\"25><40\",C22*0.3,0),\"\")","v":""},{"$f":"IF(B22<>\"\",+IF(F22>=1200,1200,F22),\"\")","v":""},{"$f":"IF(B22<>\"\",IF((G22*E22)>7200,7200,G22*E22),\"\")","v":""},{"$f":"IF(B22<>\"\",+IF($L$15=\">40\",C22*0.5,0),\"\")","v":""},{"$f":"IF(B22<>\"\",+IF(I22>=2000,2000,I22),\"\")","v":""},{"$f":"IF(B22<>\"\",IF((J22*E22)>12000,12000,J22*E22),\"\")","v":""}]
[null,null,null,null,null,{"$f":"IF(B23<>\"\",+IF($L$15=\"25><40\",C23*0.3,0),\"\")","v":""},{"$f":"IF(B23<>\"\",+IF(F23>=1200,1200,F23),\"\")","v":""},{"$f":"IF(B23<>\"\",IF((G23*E23)>7200,7200,G23*E23),\"\")","v":""},{"$f":"IF(B23<>\"\",+IF($L$15=\">40\",C23*0.5,0),\"\")","v":""},{"$f":"IF(B23<>\"\",+IF(I23>=2000,2000,I23),\"\")","v":""},{"$f":"IF(B23<>\"\",IF((J23*E23)>12000,12000,J23*E23),\"\")","v":""}]
[null,null,null,0,null,"","","","","",""]
[null,null,null,0,null,"","","","","",""]
[null,null,null,0,null,"","","","","",""]
[null,null,null,0,null,"","","","","",""]
[null,null,null,0,null,"","","","","",""]
[null,null,null,0,null,"","","","","",""]
[null,null,null,0,null,"","","","","",""]
[null,null,null,0,null,"","","","","",""]
[null,null,null,null,null,"","","","","",""]
[null,null,null,null,null,"","","","","",""]
[null,null,null,null,null,"","","","","",""]
[null,null,null,null,null,"","","","","",""]
[null,null,null,null,null,"","","","","",""]
[null,null,null,null,null,"","","","","",""]
[null,null,null,null,null,"","","","","",""]
[null,null,null,null,"Totais",null,{"$f":"IF(SUM(G22:G38)>40000,40000,SUM(G22:G38))","v":0},{"$f":"IF(SUM(H22:H38)>40000,40000,SUM(H22:H38))","v":0},{"$f":"SUM(I22:I38)","v":0},{"$f":"IF(SUM(J22:J38)>40000,40000,SUM(J22:J38))","v":0},{"$f":"IF(SUM(K22:K38)>40000,40000,SUM(K22:K38))","v":0}]
[null,null,null,null,{"$f":"IF(OR(H39=40000,K39=40000),\"No máximo receberá 40000€ de apoio.\",\"\")","v":""}]
[]
[]
[]
[null,"Data de simulação",{"$f":"TODAY()","v":"2021-02-04"}]
[]
[]
[null,"A Ordem não se responsabiliza por valores incorretos apurados, resultantes de erros na introdução de dados ou na interpretação das normas aplicáveis."]
[null,null,null,null,null,null,null,"V1.1",null,null,"v 1.1"]

{"sheet":"Condições para aceder","index":3,"n_rows":33,"n_cols":1,"rows_kept":33,"cut":false,"hidden":true,"merged":[[7,0,7,13],[8,0,8,13],[9,0,9,13],[10,0,10,13],[2,0,2,13],[3,0,3,13],[4,0,4,13],[5,0,5,13],[6,0,6,13],[19,0,19,13],[20,0,20,13],[11,0,11,13],[12,0,12,13],[13,0,13,13],[14,0,14,13],[15,0,15,13],[32,0,32,13],[0,0,0,13],[1,0,1,13],[26,0,26,13],[27,0,27,13],[28,0,28,13],[29,0,29,13],[30,0,30,13],[21,0,21,13],[22,0,22,13],[23,0,23,13],[24,0,24,13],[25,0,25,13],[16,0,16,13],[17,0,17,13],[18,0,18,13]]}
["Programa Apoiar "]
["Apoiar Rendas"]
["Microentidades (inclui ENI com contabilidade organizada e regime simplificado) \nPequenas Empresas\nMédias Empresas\nGrande empresas, com faturação inferior a 50 M€"]
["Critérios de Elegibilidade"]
[" - Estar legalmente constituída a 1 de março de 2020."]
[" - Desenvolver atividade económica principal, inserida na lista de CAE prevista no anexo A ou B da Portaria 15-B/2021, e encontrar -se em atividade."]
[" - Ser arrendatário num contrato de arrendamento para fins não habitacionais, comunicado no  Portal das Finanças, com início em data anterior a 13 de março de 2020 e relativamente ao qual, à data da candidatura, não exista ou seja ineficaz qualquer causa de cessação do contrato."]
[" - Não ter sido objeto de um processo de insolvência, nos termos do CIRE, e não ter beneficiado dos auxílios de emergência ou auxílios à reestruturação."]
[" - Possuir capitais próprios positivos à data de 31 de dezembro de 2019, exceto no caso de empresas que tenham iniciado a atividade após 1 de janeiro 2019 e no caso dos empresários em nome individual, ou demonstrar evidências de capitalização, através de novas entradas de capital."]
[" - No caso das médias empresas e das empresas a que se refere a alínea b) do artigo 13.º -A, não ser uma empresa em dificuldade a 31 de dezembro de 2019, de acordo com a definição prevista no n.º 2 do Regulamento (UE) n.º 651/2014, da Comissão, de 16 de junho de 2014."]
[" - Dispor, quando aplicável, da certificação eletrónica que comprova o estatuto de PME, nos termos previstos no Decreto -Lei n.º 372/2007, de 6 de novembro, na sua redação atual, emitida pelo IAPMEI, I. P."]
[" - Declarar uma diminuição da faturação comunicada à AT no sistema e -Fatura de, pelo menos, 25 % em 2020, face ao ano anterior, ou, no caso de empresas que iniciaram atividade no ano de 2019, declarar uma diminuição da faturação média mensal comunicada à AT no sistema e -Fatura de, pelo menos, 25 % em 2020, face à média mensal do período de atividade decorrido até 29 de fevereiro de 2020, considerando apenas os meses civis completos."]
[" - Ter a situação regularizada em matéria de reposições, no âmbito dos financiamentos dos FEEI."]
[" - Ter a situação tributária e contributiva regularizada perante, respetivamente, a administração fiscal e a segurança social, a verificar até ao momento da confirmação do termo de aceitação."]
[" - No caso das grandes empresas com faturação inferior a 50 M€, apresentar declaração de cumprimento do critério referente ao volume de negócios aí estabelecido, no exercício de 2019."]
[]
["Apoio :"]
["Quebra de faturação entre 25% e 40%\n30 % do valor da renda mensal de referência, até ao limite máximo de 1.200€ por mês e por estabelecimento, durante seis meses"]
["Quebra de faturação superior a 40%\n50 % do valor da renda mensal de referência, até ao limite máximo de 2.000 € por mês e por estabelecimento, durante seis meses"]
[]
["Renda mensal de referência: o valor resultante de contrato de arrendamento em vigor a 1 de dezembro de 2020 e que conste de documento comprovativo da renda referente a dezembro de 2020."]
[]
["->O apoio não pode exceder o limite máximo de 40.000 € por empresa"]
[]
["Durante o período de concessão do apoio, contado a partir da data de submissão da candidatura, e nos 60 dias úteis subsequentes à apresentação do pedido de pagamento final, o beneficiário não pode:"]
["a) Distribuir lucros e dividendos, sob qualquer forma, nomeadamente a título de levantamento por conta;"]
["b) Fazer cessar contratos de trabalho ao abrigo das modalidades de despedimento coletivo, de despedimento por extinção do posto de trabalho, ou de despedimento por inadaptação, previstos nos artigos 359.º, 367.º e 373.º do Código do Trabalho, respetivamente, nem iniciar os respetivos procedimentos;"]
["c) Cessar a atividade."]
["Obrigação de conservar, por um período de dois anos após o pagamento final, comprovativos de pagamento de rendas aos senhorios realizados no 1.º semestre de 2021, de montante, pelo menos, igual ao do apoio concedido."]
[]
["Submissão a partir de 4 de fevereiro"]
[]
["Expetativa de Pagamento: a partir da segunda quinzena de fevereiro"]

{"sheet":"Alerta","index":4,"n_rows":13,"n_cols":2,"rows_kept":13,"cut":false,"hidden":false,"merged":[[0,1,0,6],[1,1,1,6],[5,1,5,6],[12,1,13,5]]}
[]
[null,"Simulador"]
[]
[]
[]
[null,"Para utilizar o simulador deverá ativar as macros."]
[]
[]
[]
[]
[]
[]
[null,"Ficheiro compatível apenas com versões posteriores a Microsoft Office Excel 2007 e em formato Livro com Permissão para Macros do Excel (*.xlsm)"]